bitfinex-derivatives/quotes_SOLF0:USTF0_20250111
["timestamp","ask_amount","ask_price","bid_price","bid_amount"]
[1736573413599,7.21382194,185.54,185.48,7.21382194]
[1736573413803,2.696,185.5,185.46,5.38]
[1736573413994,2.696,185.5,185.46,12.59382194]
[1736573414197,2.696,185.5,185.46,7.21382194]
[1736573419809,7.21382194,185.52,185.46,7.21382194]
[1736573420111,2.6962,185.49,185.46,7.21382194]
[1736573420409,2.6963,185.48,185.46,7.21382194]
[1736573421210,7.21382194,185.52,185.46,7.21382194]
[1736573421405,1.0933,185.59,185.5,7.21382194]
[1736573421611,7.21382194,185.58,185.52,7.21382194]
[1736573422713,7.21382194,185.6,185.54,7.21382194]
[1736573423012,7.21382194,185.6,185.5,5.38]
[1736573423210,2.6952,185.56,185.53,7.21382194]
[1736573424605,53.30947802,185.63,185.55,7.21382194]
[1736573424912,7.21382194,185.62,185.57,7.21382194]
[1736573425116,2.6946,185.6,185.57,7.21382194]
[1736573426509,2.6947,185.59,185.57,7.21382194]
[1736573429819,2.6948,185.58,185.55,7.21382194]
[1736573431621,7.21382194,185.62,185.55,7.21382194]
[1736573431816,2.695,185.57,185.55,7.21382194]
[1736573432016,7.21382194,185.6,185.52,8.5794]
[1736573432214,7.21382194,185.6,185.53,7.21382194]
[1736573432417,2.6952,185.56,185.53,7.21382194]
[1736573433116,7.21382194,185.6,185.52,8.82632194]
[1736573433319,2.6954,185.54,185.52,8.82632194]
[1736573435321,2.6955,185.53,185.48,2.6962]
[1736573435526,2.6955,185.53,185.5,7.21382194]
[1736573444028,2.696,185.5,185.46,1.5956]
[1736573444328,7.21382194,185.52,185.46,1.5956]
[1736573444628,7.21382194,185.52,185.45,1.5281]
[1736573445931,2.6964,185.48,185.45,1.5281]
[1736573446333,7.21382194,185.5,185.44,7.21382194]
[1736573446531,2.6966,185.46,185.44,7.21382194]
[1736573447729,7.21382194,185.5,185.42,7.21382194]
[1736573447938,2.6968,185.45,185.42,7.21382194]
[1736573449432,2.6969,185.44,185.42,7.21382194]
[1736573449935,23.03505508,185.54,185.37,1.5774]
[1736573449936,2.6973,185.41,185.37,1.5774]
[1736573450135,2.6973,185.41,185.39,7.21382194]
[1736573450335,7.21382194,185.44,185.37,1.5774]
[1736573450534,2.6976,185.4,185.36,10.34352194]
[1736573450835,7.21382194,185.44,185.36,10.34352194]
[1736573451032,1.0938,185.49,185.38,7.21382194]
[1736573451232,7.21382194,185.47,185.41,7.21382194]
[1736573451633,2.697,185.44,185.41,7.21382194]
[1736573454234,2.697,185.43,185.38,2.6977]
[1736573454434,2.697,185.43,185.4,7.21382194]
[1736573455040,2.698,185.36,185.21,90.29567133]
[1736573455336,7.21382194,185.39,185.25,4.8465]
[1736573455536,7.21382194,185.37,185.3,7.21382194]
[1736573455731,2.6982,185.35,185.31,7.21382194]
[1736573455938,7.21382194,185.37,185.31,7.21382194]
[1736573456138,7.21382194,185.37,185.27,2.6992]
[1736573456338,7.21382194,185.37,185.3,7.21382194]
[1736573458144,2.6983,185.34,185.3,7.21382194]
[1736573461947,3.2245,185.43,185.32,7.21382194]
[1736573462145,2.6975,185.4,185.34,7.21382194]
[1736573462339,3.2245,185.43,185.34,7.21382194]
[1736573462540,7.21382194,185.41,185.34,7.21382194]
[1736573462940,3.2245,185.43,185.36,7.21382194]
[1736573463143,2.6973,185.41,185.38,7.21382194]
[1736573463845,2.697,185.43,185.38,7.21382194]
[1736573464547,2.697,185.43,185.38,9.91152194]
[1736573465848,2.6969,185.44,185.4,7.21382194]
[1736573467846,2.6966,185.46,185.42,7.21382194]
[1736573468150,6.0411706,185.48,185.36,4.9348]
[1736573468151,6.0411706,185.48,185.44,7.21382194]
[1736573468350,2.6964,185.47,185.44,7.21382194]
[1736573475254,7.21382194,185.5,185.44,7.21382194]
[1736573475555,2.6966,185.46,185.42,12.61382194]
[1736573476055,7.21382194,185.46,185.39,7.21382194]
[1736573477050,2.6973,185.42,185.39,7.21382194]
[1736573477257,7.21382194,185.44,185.36,4.9348]
[1736573477456,7.21382194,185.42,185.36,12.14862194]
[1736573478650,2.6975,185.4,185.36,12.14862194]
[1736573480356,2.6976,185.39,185.36,4.9348]
[1736573480556,2.6976,185.39,185.36,12.14862194]
[1736573482460,7.21382194,185.44,185.36,12.14862194]
[1736573482660,7.21382194,185.42,185.36,1.6451]
[1736573482853,7.21382194,185.4,185.36,1.6451]
[1736573483053,7.21382194,185.4,185.34,7.21382194]
[1736573484465,2.698,185.37,185.34,7.21382194]
[1736573485359,2.6981,185.36,185.34,7.21382194]
[1736573486865,2.6978,185.38,185.34,7.21382194]
[1736573487163,2.6978,185.38,185.36,7.21382194]
[1736573488168,7.21382194,185.42,185.36,7.21382194]
[1736573488363,2.6975,185.4,185.36,7.21382194]
[1736573489462,2.6976,185.39,185.36,7.21382194]
[1736573489657,7.21382194,185.42,185.34,7.21382194]
[1736573489865,2.6976,185.39,185.34,7.21382194]
[1736573491265,7.21382194,185.42,185.34,7.21382194]
[1736573493166,2.6979,185.38,185.34,7.21382194]
[1736573494171,2.6979,185.37,185.34,7.21382194]
[1736573494563,7.21382194,185.42,185.34,7.21382194]
[1736573494769,2.6976,185.39,185.34,9.91202194]
[1736573495367,2.6978,185.38,185.33,8.0984]
[1736573495671,2.6978,185.38,185.34,7.21382194]
[1736573497475,2.6979,185.37,185.34,7.21382194]
[1736573498376,2.6982,185.35,185.32,7.21382194]
[1736573499071,16.18,185.43,185.3,7.21382194]
[1736573499272,6.87509328,185.45,185.32,7.21382194]
[1736573499473,7.21382194,185.4,185.32,7.21382194]
[1736573499674,2.698,185.37,185.34,7.21382194]
[1736573500474,2.6981,185.36,185.34,7.21382194]
[1736573501874,2.6981,185.36,185.32,7.21382194]
[1736573502069,2.6982,185.35,185.32,7.21382194]
[1736573502883,7.21382194,185.38,185.32,7.21382194]
[1736573503079,2.6983,185.34,185.32,7.21382194]
[1736573506281,2.698,185.37,185.32,7.21382194]
[1736573506481,7.21382194,185.4,185.32,7.21382194]
[1736573506782,7.21382194,185.42,185.36,7.21382194]
[1736573507082,14.08891522,185.45,185.38,7.21382194]
[1736573507582,7.21382194,185.45,185.38,7.21382194]
[1736573508083,2.6973,185.42,185.38,7.21382194]
[1736573508476,7.21382194,185.45,185.38,7.21382194]
[1736573509383,2.697,185.43,185.38,7.21382194]
[1736573510381,2.6972,185.42,185.38,7.21382194]
[1736573510582,7.21382194,185.45,185.38,7.21382194]
[1736573510977,2.6972,185.42,185.38,7.21382194]
[1736573511983,7.21382194,185.43,185.36,8.82742194]
[1736573513084,2.6973,185.41,185.36,8.82742194]
[1736573513287,7.21382194,185.43,185.36,8.82742194]
[1736573513582,7.21382194,185.41,185.36,8.82742194]
[1736573513977,2.6979,185.37,185.36,8.82742194]
[1736573514185,7.21382194,185.39,185.33,5.4]
[1736573514578,7.21382194,185.39,185.32,7.21382194]
[1736573514787,7.21382194,185.37,185.3,7.21382194]
[1736573515086,2.6982,185.35,185.3,7.21382194]
[1736573515285,157.31355179,185.43,185.32,7.21382194]
[1736573515480,7.21382194,185.38,185.32,7.21382194]
[1736573517177,2.6981,185.36,185.32,7.21382194]
[1736573518686,7.21382194,185.38,185.32,7.21382194]
[1736573518884,2.6982,185.35,185.32,7.21382194]
[1736573520985,2.6985,185.33,185.29,5.4]
[1736573521177,2.6985,185.33,185.31,7.21382194]
[1736573525280,2.6983,185.34,185.31,7.21382194]
[1736573526586,7.21382194,185.37,185.31,7.21382194]
[1736573526776,2.6983,185.34,185.31,7.21382194]
[1736573527680,7.21382194,185.35,185.26,4.78]
[1736573527885,7.21382194,185.35,185.27,7.21382194]
[1736573528685,2.6989,185.31,185.27,7.21382194]
[1736573530186,6.87556551,185.4,185.29,7.21382194]
[1736573530382,6.87556551,185.4,185.33,7.21382194]
[1736573530688,7.21382194,185.4,185.33,7.21382194]
[1736573531984,7.21382194,185.4,185.35,7.21382194]
[1736573532379,9.91142194,185.4,185.35,7.21382194]
[1736573532688,2.6976,185.4,185.35,7.21382194]
[1736573533089,7.21382194,185.42,185.37,7.21382194]
[1736573533090,2.6973,185.42,185.37,7.21382194]
[1736573533386,7.21382194,185.44,185.37,7.21382194]
[1736573534290,2.697,185.43,185.37,9.91172194]
[1736573536683,2.6968,185.45,185.39,2.6976]
[1736573536891,2.6968,185.45,185.4,7.21382194]
[1736573539192,2.6969,185.44,185.4,7.21382194]
[1736573539492,7.21382194,185.46,185.39,5.42]
[1736573541187,2.6969,185.44,185.39,5.42]
[1736573541385,7.21382194,185.46,185.39,5.42]
[1736573541692,2.6974,185.41,185.36,12.63382194]
[1736573542092,7.21382194,185.42,185.36,12.63382194]
[1736573542295,2.6971,185.43,185.38,7.21382194]
[1736573542687,7.21382194,185.44,185.38,7.21382194]
[1736573544192,2.6972,185.42,185.38,7.21382194]
[1736573546897,2.697,185.44,185.4,7.21382194]
[1736573548100,2.697,185.43,185.38,2.6977]
[1736573548301,7.21382194,185.46,185.39,7.21382194]
[1736573549102,2.6972,185.42,185.39,7.21382194]
[1736573549696,7.21382194,185.46,185.39,7.21382194]
[1736573549901,2.6974,185.4,185.37,7.21382194]
[1736573552406,2.6977,185.39,185.36,5.42]
[1736573552904,2.6979,185.37,185.36,5.42]
[1736573553104,7.21382194,185.42,185.36,5.42]
[1736573554499,7.21382194,185.42,185.35,7.21382194]
[1736573555107,2.6976,185.39,185.35,7.21382194]
[1736573556002,2.6979,185.37,185.35,7.21382194]
[1736573556305,7.21382194,185.42,185.35,7.21382194]
[1736573557108,2.6976,185.4,185.35,7.21382194]
[1736573557300,7.21382194,185.42,185.35,7.21382194]
[1736573557706,2.6975,185.4,185.35,7.21382194]
[1736573558406,2.6976,185.39,185.35,7.21382194]
[1736573566018,2.6976,185.39,185.34,9.6434]
[1736573566204,2.6979,185.37,185.34,14.15892194]
[1736573566404,157.30884903,185.47,185.34,14.15892194]
[1736573566704,7.21382194,185.42,185.36,7.21382194]
[1736573568213,2.6976,185.39,185.36,7.21382194]
[1736573569915,2.6979,185.37,185.34,14.15892194]
[1736573572817,2.6976,185.39,185.34,14.15892194]
[1736573574118,2.6976,185.39,185.34,16.85722194]
[1736573575313,2.6976,185.39,185.35,2.6981]
[1736573576612,2.6976,185.39,185.35,9.91192194]
[1736573577220,7.21382194,185.42,185.35,9.91192194]
[1736573577414,2.6974,185.41,185.35,9.91192194]
[1736573578018,7.21382194,185.42,185.34,6.9451]
[1736573578211,7.21382194,185.42,185.34,16.85722194]
[1736573579214,2.6976,185.39,185.34,16.85722194]
[1736573581019,2.6976,185.39,185.35,2.6982]
[1736573581219,7.21382194,185.42,185.35,2.6982]
[1736573581416,2.6975,185.4,185.35,2.6982]
[1736573585128,2.6976,185.39,185.34,16.85722194]
[1736573586127,7.21382194,185.42,185.34,14.15892194]
[1736573586322,2.6977,185.38,185.34,14.15892194]
[1736573591423,14.59644785,185.44,185.34,14.15892194]
[1736573591624,2.6974,185.4,185.35,2.6981]
[1736573595326,14.59891203,185.45,185.34,14.15892194]
[1736573595526,6.8827927,185.45,185.4,9.91122194]
[1736573595735,6.8827927,185.45,185.4,7.21382194]
[1736573595931,150.43798628,185.46,185.4,7.21382194]
[1736573596634,7.21382194,185.45,185.4,7.21382194]
[1736573597226,9.91062194,185.45,185.4,7.21382194]
[1736573598440,7.21382194,185.45,185.4,7.21382194]
[1736573598634,2.6969,185.44,185.4,7.21382194]
[1736573600341,7.21382194,185.46,185.4,7.21382194]
[1736573600535,7.21382194,185.48,185.4,7.21382194]
[1736573601034,2.6965,185.47,185.42,9.91092194]
[1736573601434,2.6963,185.48,185.43,2.697]
[1736573603446,8.82720755,185.49,185.44,7.21382194]
[1736573603649,8.82720755,185.49,185.44,9.91062194]
[1736573603848,2.6962,185.49,185.44,9.91062194]
[1736573612256,2.6963,185.48,185.44,7.21382194]
[1736573619660,2.696,185.5,185.45,2.6967]
[1736573619861,57.65050845,185.51,185.46,7.21382194]
[1736573620261,7.21382194,185.53,185.46,7.21382194]
[1736573620460,2.6956,185.53,185.43,1.6798]
[1736573620663,2.6956,185.53,185.47,7.21382194]
[1736573621162,2.6956,185.53,185.47,9.91012194]
[1736573626265,2.6956,185.53,185.49,7.21382194]
[1736573629771,8.55273297,185.56,185.51,7.21382194]
[1736573629965,5.85763297,185.56,185.53,7.21382194]
[1736573630171,7.21382194,185.59,185.53,7.21382194]
[1736573632071,2.695,185.57,185.53,7.21382194]
[1736573633769,150.43798628,185.65,185.55,7.21382194]
[1736573633971,156.12007628,185.66,185.59,7.21382194]
[1736573634270,163.33389822,185.66,185.59,7.21382194]
[1736573635169,163.33389822,185.66,185.58,2.6947]
[1736573635462,12.89591194,185.66,185.59,7.21382194]
[1736573635667,2.6944,185.62,185.57,8.88392194]
[1736573642468,7.21382194,185.64,185.51,1.5598]
[1736573642673,2.6948,185.59,185.55,7.21382194]
[1736573645871,2.695,185.57,185.52,2.6957]
[1736573646070,7.21382194,185.58,185.51,6.9125]
[1736573646268,7.21382194,185.56,185.5,8.89972194]
[1736573646672,2.6954,185.54,185.5,8.89972194]
[1736573646872,7.21382194,185.56,185.5,8.89972194]
[1736573647178,7.21382194,185.58,185.5,8.89972194]
[1736573647680,2.695,185.57,185.51,2.6957]
[1736573649376,7.21382194,185.58,185.5,8.89972194]
[1736573649574,7.21382194,185.56,185.5,8.89972194]
[1736573649775,7.21382194,185.56,185.5,7.21382194]
[1736573651071,2.6957,185.52,185.48,7.21382194]
[1736573652379,2.6959,185.51,185.48,7.21382194]
[1736573652581,7.21382194,185.54,185.46,12.59382194]
[1736573652884,7.21382194,185.54,185.46,7.21382194]
[1736573655181,2.696,185.51,185.46,7.21382194]
[1736573656184,6.8367635,185.59,185.46,7.21382194]
[1736573656380,2.6956,185.53,185.48,7.21382194]
[1736573658484,2.6957,185.52,185.48,7.21382194]
[1736573660282,2.6955,185.54,185.5,7.21382194]
[1736573660589,7.21382194,185.58,185.52,7.21382194]
[1736573661787,2.6951,185.56,185.52,7.21382194]
[1736573661987,202.21382194,185.6,185.52,7.21382194]
[1736573662488,7.21382194,185.6,185.52,7.21382194]
[1736573662684,7.21382194,185.6,185.54,7.21382194]
[1736573663281,2.6951,185.57,185.52,7.21382194]
[1736573663490,7.21382194,185.58,185.52,7.21382194]
[1736573664191,2.6954,185.55,185.52,7.21382194]
[1736573666191,1.6065,185.62,185.52,7.21382194]
[1736573666392,2.6949,185.58,185.54,7.21382194]
[1736573666595,8.39086912,185.63,185.54,7.21382194]
[1736573666783,7.21382194,185.62,185.54,7.21382194]
[1736573667589,2.6947,185.59,185.56,7.21382194]
[1736573668192,2.6945,185.6,185.56,7.21382194]
[1736573668494,7.21382194,185.64,185.56,7.21382194]
[1736573668691,12.53445912,185.66,185.56,7.21382194]
[1736573668994,7.21382194,185.64,185.56,7.21382194]
[1736573669894,7.21382194,185.64,185.58,7.21382194]
[1736573670092,2.6944,185.61,185.58,7.21382194]
[1736573671097,2.6944,185.61,185.56,9.90892194]
[1736573671991,2.6941,185.63,185.58,9.90862194]
[1736573672400,7.21382194,185.65,185.58,7.21382194]
[1736573673192,7.21382194,185.65,185.54,4.7309]
[1736573673401,7.21382194,185.65,185.57,7.21382194]
[1736573674301,7.21382194,185.65,185.59,7.21382194]
[1736573674707,2.6942,185.63,185.59,9.90842194]
[1736573677309,2.6942,185.63,185.59,7.21382194]
[1736573679907,2.694,185.64,185.59,9.90842194]
[1736573680107,5.68209,185.66,185.61,7.21382194]
[1736573680307,7.21382194,185.69,185.63,7.21382194]
[1736573680506,2.6937,185.66,185.63,7.21382194]
[1736573682203,2.6939,185.64,185.61,7.21382194]
[1736573682808,2.6935,185.67,185.63,7.21382194]
[1736573684611,2.6934,185.68,185.63,9.90782194]
[1736573686310,2.6935,185.67,185.63,7.21382194]
[1736573692020,2.6939,185.64,185.61,10.42492194]
[1736573692415,7.21382194,185.69,185.63,7.21382194]
[1736573695118,2.6938,185.65,185.63,7.21382194]
[1736573696024,2.6937,185.66,185.63,7.21382194]
[1736573698020,7.21382194,185.69,185.63,7.21382194]
[1736573698223,2.6938,185.65,185.63,7.21382194]
[1736573700424,1.6805,185.73,185.63,7.21382194]
[1736573700621,1.6805,185.73,185.66,7.21382194]
[1736573700825,7.21382194,185.73,185.66,7.21382194]
[1736573701324,2.6933,185.69,185.66,7.21382194]
[1736573701523,7.21382194,185.73,185.66,7.21382194]
[1736573702924,53.84204366,185.74,185.66,7.21382194]
[1736573702925,7.21382194,185.71,185.66,7.21382194]
[1736573703120,2.6934,185.68,185.66,7.21382194]
[1736573704522,7.21382194,185.72,185.66,7.21382194]
[1736573705426,53.84204366,185.74,185.62,1.6496]
[1736573705624,163.20264007,185.77,185.62,1.6496]
[1736573705822,155.98881813,185.77,185.71,7.21382194]
[1736573706030,163.20264007,185.77,185.69,2.6931]
[1736573706227,163.20264007,185.77,185.7,7.21382194]
[1736573706532,2.6929,185.72,185.68,5.38]
[1736573706832,7.21382194,185.73,185.67,7.21382194]
[1736573707133,7.21382194,185.71,185.65,7.21382194]
[1736573710131,2.6933,185.69,185.65,7.21382194]
[1736573711335,2.6934,185.68,185.65,7.21382194]
[1736573715736,7.21382194,185.69,185.62,1.6496]
[1736573715930,7.21382194,185.69,185.62,8.86342194]
[1736573716840,2.6938,185.66,185.62,8.86342194]
[1736573717039,7.21382194,185.69,185.62,7.21382194]
[1736573717238,2.694,185.64,185.62,7.21382194]
[1736573718533,2.694,185.64,185.61,3.2111]
[1736573718534,7.21382194,185.67,185.61,3.2111]
[1736573718740,7.21382194,185.65,185.6,7.21382194]
[1736573718940,7.21382194,185.65,185.58,7.21382194]
[1736573719241,2.6943,185.62,185.58,7.21382194]
[1736573726739,7.21382194,185.65,185.58,7.21382194]
[1736573727042,2.6941,185.63,185.58,9.90862194]
[1736573727249,2.6941,185.63,185.6,7.21382194]
[1736573728547,2.6941,185.63,185.58,9.90862194]
[1736573731148,7.21382194,185.65,185.53,3.1613]
[1736573731347,16.18,185.7,185.54,8.0754]
[1736573731348,2.6947,185.59,185.54,8.0754]
[1736573731555,2.6947,185.59,185.55,7.21382194]
[1736573731748,2.6948,185.58,185.55,7.21382194]
[1736573736051,2.6944,185.61,185.55,7.21382194]
[1736573736253,7.21382194,185.65,185.57,7.21382194]
[1736573736755,7.21382194,185.65,185.57,9.90872194]
[1736573736756,2.6942,185.63,185.57,9.90872194]
[1736573738857,7.21382194,185.65,185.57,9.90872194]
[1736573739056,2.6943,185.62,185.57,9.90872194]
[1736573739453,2.6948,185.58,185.54,2.6954]
[1736573739657,7.21382194,185.61,185.55,7.21382194]
[1736573740557,2.6948,185.59,185.55,7.21382194]
[1736573743762,2.6948,185.59,185.57,7.21382194]
[1736573744762,2.6945,185.61,185.57,7.21382194]
[1736573745066,7.21382194,185.65,185.59,7.21382194]
[1736573746268,2.6942,185.62,185.59,7.21382194]
[1736573750663,2.6943,185.61,185.59,7.21382194]
[1736573762483,2.6938,185.66,185.6,2.6944]
[1736573762683,6.8400233,185.68,185.62,7.21382194]
[1736573762978,180.1532497,185.7,185.62,7.21382194]
[1736573763182,172.93942776,185.7,185.64,7.21382194]
[1736573763784,2.6935,185.67,185.66,7.21382194]
[1736573763974,150.43798628,185.73,185.66,7.21382194]
[1736573764380,2.6934,185.68,185.66,7.21382194]
[1736573764684,14.07259417,185.72,185.66,7.21382194]
[1736573765185,7.21382194,185.72,185.66,7.21382194]
[1736573765885,7.21382194,185.7,185.64,7.21382194]
[1736573766085,17.23923276,185.75,185.62,7.21382194]
[1736573766086,7.21382194,185.68,185.62,7.21382194]
[1736573766278,7.21382194,185.66,185.61,1.6843]
[1736573766879,7.21382194,185.68,185.62,7.21382194]
[1736573767079,7.21382194,185.68,185.61,1.6843]
[1736573767284,7.21382194,185.66,185.61,1.6843]
[1736573768480,2.6942,185.62,185.61,1.6843]
[1736573768681,7.21382194,185.66,185.6,7.21382194]
[1736573769380,2.6943,185.62,185.6,7.21382194]
[1736573769589,7.21382194,185.66,185.6,7.21382194]
[1736573770180,2.694,185.64,185.6,7.21382194]
[1736573770980,2.6941,185.63,185.6,7.21382194]
[1736573773585,6.85877223,185.71,185.6,7.21382194]
[1736573773791,2.6936,185.67,185.62,9.90802194]
[1736573775393,2.6934,185.68,185.64,7.21382194]
[1736573779993,2.6935,185.67,185.64,7.21382194]
[1736573781598,2.6932,185.7,185.66,7.21382194]
[1736573781793,6.85046891,185.75,185.68,7.21382194]
[1736573781996,14.06429085,185.75,185.68,7.21382194]
[1736573782192,6.85046891,185.75,185.7,7.21382194]
[1736573782593,204.50613542,185.76,185.7,7.21382194]
[1736573782794,2.6925,185.74,185.7,7.21382194]
[1736573788597,8.24293185,185.77,185.72,7.21382194]
[1736573788795,8.24293185,185.77,185.72,12.59382194]
[1736573788998,2.6921,185.77,185.72,12.59382194]
[1736573789401,2.6921,185.77,185.74,7.21382194]
[1736573801505,2.6917,185.8,185.75,2.6924]
[1736573806213,2.6917,185.8,185.76,7.21382194]
[1736573808509,1.689,185.87,185.78,7.21382194]
[1736573808905,7.21382194,185.86,185.8,7.21382194]
[1736573809114,7.21382194,185.86,185.79,7.21382194]
[1736573809313,84.06,185.89,185.79,7.21382194]
[1736573809714,7.21382194,185.87,185.79,7.21382194]
[1736573809915,2.6912,185.84,185.79,9.90552194]
[1736573810312,7.21382194,185.87,185.79,9.90552194]
[1736573811214,2.6912,185.83,185.79,9.90552194]
[1736573813617,2.6912,185.83,185.79,7.21382194]
[1736573814318,7.21382194,185.83,185.73,10.0998]
[1736573814514,7.21382194,185.81,185.74,7.21382194]
[1736573814922,7.21382194,185.79,185.73,4.7198]
[1736573815118,7.21382194,185.79,185.73,11.93362194]
[1736573816220,7.21382194,185.81,185.75,7.21382194]
[1736573816925,8.5341,185.86,185.77,7.21382194]
[1736573817127,7.21382194,185.84,185.77,7.21382194]
[1736573818124,2.6915,185.82,185.77,7.21382194]
[1736573818629,2.6915,185.81,185.77,7.21382194]
[1736573819828,2.6916,185.8,185.77,7.21382194]
[1736573821531,2.6921,185.77,185.73,4.7198]
[1736573821729,2.6921,185.77,185.73,11.93362194]
[1736573821918,140.95081332,185.88,185.79,12.0]
[1736573822121,170.38212667,185.9,185.87,17.21382194]
[1736573822418,170.38212667,185.9,185.89,9.90412194]
[1736573822623,170.38212667,185.9,185.89,5.64]
[1736573823927,7.21382194,185.92,185.83,5.66]
[1736573824129,7.21382194,185.9,185.84,7.21382194]
[1736573824324,2.6905,185.88,185.84,7.21382194]
[1736573824727,7.21382194,185.9,185.84,7.21382194]
[1736573825124,2.6908,185.86,185.84,7.21382194]
[1736573825319,7.21382194,185.88,185.76,2.6921]
[1736573825523,7.21382194,185.88,185.82,5.64]
[1736573825918,7.21382194,185.86,185.77,5.71059358]
[1736573826119,7.21382194,185.86,185.79,12.87382194]
[1736573826323,2.6915,185.81,185.79,12.87382194]
[1736573827729,7.21382194,185.87,185.79,12.87382194]
[1736573828331,2.6913,185.83,185.79,12.87382194]
[1736573828531,7.21382194,185.87,185.79,12.87382194]
[1736573828934,2.6908,185.86,185.81,7.21382194]
[1736573829135,2.6908,185.86,185.83,7.21382194]
[1736573830835,2.6906,185.88,185.85,7.21382194]
[1736573831336,2.6906,185.88,185.83,11.25989968]
[1736573833738,8.6842,185.91,185.83,11.25989968]
[1736573834038,3.2902,185.91,185.8,11.25989968]
[1736573834332,2.6912,185.83,185.79,5.66]
[1736573834537,11.25989968,185.89,185.79,5.66]
[1736573835134,5.394,185.88,185.79,5.66]
[1736573835337,11.25989968,185.89,185.79,5.66]
[1736573836138,2.6912,185.83,185.79,5.66]
[1736573836332,5.394,185.86,185.77,11.25989968]
[1736573836532,5.394,185.86,185.77,5.66]
[1736573836734,16.65389968,185.86,185.74,18.72920593]
[1736573837036,2.6918,185.79,185.75,5.66]
[1736573843040,2.6919,185.78,185.75,5.66]
[1736573843438,16.65389968,185.86,185.75,5.66]
[1736573844042,11.25989968,185.86,185.75,5.66]
[1736573844637,2.6912,185.83,185.77,11.25989968]
[1736573844839,11.25989968,185.89,185.77,11.25989968]
[1736573845042,11.25989968,185.89,185.78,5.72212676]
[1736573845334,2.6912,185.83,185.78,8.41402676]
[1736573845743,2.6912,185.83,185.79,5.72212676]
[1736573846547,2.6912,185.83,185.78,2.6919]
[1736573847947,2.6912,185.83,185.79,5.72009858]
[1736573848941,2.6912,185.83,185.78,2.6919]
[1736573850048,2.6912,185.83,185.79,5.71867979]
[1736573850346,2.6912,185.83,185.78,2.6919]
[1736573850844,2.691,185.85,185.8,11.25989968]
[1736573851045,1.5313,185.9,185.8,11.25989968]
[1736573851349,7.20842108,185.89,185.82,7.20842108]
[1736573852050,2.6908,185.86,185.82,7.20842108]
[1736573852851,7.20842108,185.89,185.82,7.20842108]
[1736573853051,2.6909,185.85,185.82,7.20842108]
[1736573862256,3.2902,185.91,185.82,7.20842108]
[1736573862453,2.6906,185.88,185.83,5.6]
[1736573863857,2.6906,185.88,185.84,7.20842108]
[1736573864353,2.6906,185.87,185.84,7.20842108]
[1736573865358,2.6904,185.89,185.84,7.20842108]
[1736573866055,3.2902,185.91,185.86,7.20842108]
[1736573866462,2.6903,185.89,185.84,2.691]
[1736573866758,2.6903,185.89,185.85,7.20842108]
[1736573869362,2.6902,185.9,185.86,5.72781366]
[1736573869957,2.6902,185.9,185.85,9.89932108]
[1736573870965,2.6902,185.9,185.86,5.72654205]
[1736573871265,2.69,185.92,185.87,7.20842108]
[1736573872163,2.69,185.92,185.87,9.89902108]
[1736573872666,7.20842108,185.94,185.87,7.20842108]
[1736573872966,2.69,185.91,185.87,7.20842108]
[1736573875565,2.6899,185.92,185.87,9.89902108]
[1736573877165,61.85503601,185.96,185.87,7.20842108]
[1736573877365,2.6896,185.94,185.89,9.89872108]
[1736573879466,2.6896,185.94,185.89,2.6903]
[1736573879668,2.6897,185.93,185.9,5.56]
[1736573881163,7.20842108,185.95,185.9,5.56]
[1736573881467,2.6896,185.94,185.9,5.56]
[1736573886976,2.6898,185.93,185.9,5.56]
[1736573887178,12.60242108,185.95,185.9,5.56]
[1736573887368,3.1703,185.96,185.9,5.56]
[1736573887675,8.0834,185.95,185.9,8.25]
[1736573888375,5.394,185.95,185.9,8.25]
[1736573888574,2.6896,185.94,185.9,8.25]
[1736573890966,2.6896,185.94,185.9,5.56]
[1736573891173,2.6896,185.94,185.91,7.20842108]
[1736573892273,8.0835,185.95,185.91,7.20842108]
[1736573896777,2.6891,185.98,185.93,7.20842108]
[1736573896977,2.6891,185.98,185.95,7.20842108]
[1736573898076,7.20842108,186.01,185.95,7.20842108]
[1736573898277,2.6887,186.01,185.97,7.20842108]
[1736573898478,7.20842108,186.03,185.97,7.20842108]
[1736573898673,7.20842108,186.03,185.96,7.20842108]
[1736573899181,7.20842108,186.01,185.93,2.6896]
[1736573899379,7.20842108,186.01,185.94,7.20842108]
[1736573899987,7.20842108,185.99,185.91,52.23735912]
[1736573900285,7.20842108,185.99,185.93,7.20842108]